bitfinex/quotes_ETHUSD_20250611
["timestamp","ask_amount","ask_price","bid_price","bid_amount"]
[1749627154733,0.1792,2794.0,2793.9,3.57912463]
[1749627154893,0.1792,2794.0,2793.7,3.5793979]
[1749627155093,0.1792,2794.0,2793.8,10.0]
[1749627155950,0.1792,2794.0,2793.7,3.5793979]
[1749627155951,0.1792,2794.0,2793.7,13.57939015]
[1749627156093,0.1792,2794.0,2793.8,3.57926356]
[1749627156499,0.1792,2794.0,2793.7,13.5794824]
[1749627156725,0.1792,2794.0,2793.8,3.57925972]
[1749627157034,0.1792,2794.0,2793.8,10.0]
[1749627157197,0.1792,2794.0,2793.8,3.57933204]
[1749627157610,0.1792,2794.0,2793.7,3.57945995]
[1749627157807,0.1792,2794.0,2793.7,3.5794824]
[1749627158411,0.1792,2794.0,2793.8,3.57934196]
[1749627159013,0.1792,2794.0,2793.9,3.57922617]
[1749627160256,0.1792,2794.0,2793.7,3.57946475]
[1749627160457,0.1792,2794.0,2793.9,3.57922617]
[1749627163626,0.1792,2794.0,2793.9,19.7720637]
[1749627163830,1.5051873,2794.7,2793.9,19.7720637]
[1749627163831,2.4787873,2794.7,2794.2,3.57872347]
[1749627164126,0.24787873,2794.6,2794.3,0.952]
[1749627164332,0.1792,2794.4,2794.3,4.53071381]
[1749627164969,0.1792,2794.4,2794.3,0.952]
[1749627165156,0.1792,2794.4,2794.3,4.53071381]
[1749627166170,0.1792,2794.4,2794.3,0.952]
[1749627166747,0.1792,2794.4,2794.3,4.53071381]
[1749627166961,0.1792,2794.4,2794.3,0.952]
[1749627167567,0.1792,2794.4,2794.3,4.53071381]
[1749627168145,0.1792,2794.4,2794.3,14.53071381]
[1749627168345,0.9674,2795.0,2794.3,10.952]
[1749627168346,0.1792,2794.6,2794.3,10.952]
[1749627168568,0.9674,2795.0,2794.5,13.57845768]
[1749627168883,0.1792,2794.7,2794.5,10.0]
[1749627169038,0.1792,2794.7,2794.6,10.0]
[1749627173551,1.1878,2794.7,2794.6,10.952]
[1749627173946,1.1878,2794.7,2794.6,0.952]
[1749627175485,0.1792,2794.7,2794.6,14.53032963]
[1749627176287,1.0374,2795.5,2795.0,3.57780142]
[1749627176597,0.1792,2795.1,2795.0,3.57780142]
[1749627177093,0.1792,2795.1,2794.9,13.57790339]
[1749627178861,0.1792,2795.1,2795.0,0.952]
[1749627180364,0.1792,2795.1,2794.8,10.0]
[1749627180569,0.1792,2795.1,2795.0,0.952]
[1749627181949,0.1792,2795.1,2794.7,10.0]
[1749627182182,1.0549,2795.0,2794.8,0.951]
[1749627182781,0.1792,2794.9,2794.8,0.951]
[1749627183079,1.6843873,2794.9,2794.8,0.951]
[1749627183519,2.93951603,2794.9,2794.8,0.951]
[1749627183645,12.39462866,2794.9,2794.8,0.951]
[1749627186273,9.45511263,2794.6,2794.1,9.263]
[1749627186447,1.012,2794.5,2794.2,0.951]
[1749627186647,0.1792,2794.3,2794.2,0.951]
[1749627192275,0.1792,2794.3,2794.2,4.52984188]
[1749627192481,0.1792,2794.3,2794.2,0.951]
[1749627192900,0.1792,2794.3,2794.2,4.52984188]
[1749627193128,1.6843873,2794.4,2794.3,3.57871381]
[1749627193434,0.1792,2794.5,2794.3,3.57871381]
[1749627194585,0.1792,2794.5,2794.2,4.52982185]
[1749627195205,0.1792,2794.5,2794.2,0.951]
[1749627195408,0.1792,2794.5,2794.2,4.52980953]
[1749627196423,0.1792,2794.5,2794.3,3.57870471]
[1749627196584,0.1792,2794.5,2794.2,14.5297797]
[1749627196931,0.1792,2794.5,2794.3,3.57864084]
[1749627197910,0.1792,2794.5,2794.2,10.951]
[1749627198083,0.1792,2794.5,2794.2,14.52975779]
[1749627198597,0.1792,2794.5,2794.2,10.951]
[1749627198782,0.1792,2794.5,2794.3,3.57859671]
[1749627199140,1.5051873,2794.8,2794.2,14.52983037]
[1749627199141,1.5051873,2794.8,2794.5,3.57837049]
[1749627199298,0.1792,2794.6,2794.5,3.57837049]
[1749627199478,1.5051873,2794.8,2794.6,3.57832414]
[1749627199684,0.1792,2794.7,2794.6,13.57832414]
[1749627199882,0.1792,2795.2,2795.0,3.57773424]
[1749627200118,0.1792,2795.2,2795.1,10.951]
[1749627200924,0.1792,2795.2,2795.1,0.951]
[1749627201081,0.1792,2795.2,2795.1,10.951]
[1749627201286,0.1792,2795.2,2795.1,0.951]
[1749627202280,0.1792,2795.2,2795.1,10.951]
[1749627202482,0.1792,2795.2,2795.1,14.52868952]
[1749627202723,1.6843873,2795.4,2795.2,3.57756153]
[1749627202908,1.6843873,2795.4,2795.3,3.57743354]
[1749627203430,1.6843873,2795.4,2795.2,3.57755112]
[1749627204136,0.1792,2795.4,2795.2,3.57755112]
[1749627205212,0.1792,2795.4,2795.2,3.57756153]
[1749627205530,0.1792,2795.5,2795.4,3.57723878]
[1749627205899,0.1792,2795.5,2795.3,3.57736145]
[1749627206723,0.1792,2795.5,2795.2,3.57752902]
[1749627206928,0.1792,2795.5,2795.3,3.57735356]
[1749627207236,0.1792,2795.5,2795.2,10.0]
[1749627207586,0.1792,2795.5,2795.3,3.57741055]
[1749627208019,0.1792,2795.5,2795.4,3.57730557]
[1749627208325,0.1792,2795.5,2795.3,3.57737089]
[1749627208524,0.1792,2795.5,2795.2,13.5775074]
[1749627208737,0.1792,2795.5,2795.3,0.951]
[1749627209107,1.2136,2795.5,2795.4,0.951]
[1749627209443,6.8007522,2795.5,2795.4,0.951]
[1749627209592,6.9799522,2795.5,2795.4,0.951]
[1749627209892,6.9799522,2795.5,2794.5,10.0]
[1749627210224,0.1792,2794.7,2794.6,0.951]
[1749627216651,0.1792,2794.7,2794.6,4.52932963]
[1749627216652,0.17815693,2794.7,2794.6,4.52932963]
[1749627218060,0.9975,2795.2,2794.7,3.57810909]
[1749627218356,0.1792,2794.9,2794.7,3.57810909]
[1749627219142,0.1792,2794.9,2794.6,4.52927436]
[1749627219477,0.1792,2794.9,2794.7,13.57811014]
[1749627220366,0.1792,2794.9,2794.8,3.57807356]
[1749627220535,0.1792,2794.9,2794.7,3.57816871]
[1749627222439,0.1792,2794.9,2794.8,13.57807356]
[1749627222645,0.1792,2794.9,2794.8,10.0]
[1749627222942,0.1792,2794.9,2794.8,13.57807356]
[1749627223771,0.1792,2794.9,2794.8,3.57807356]
[1749627226986,0.1792,2794.9,2794.7,13.57817439]
[1749627227140,0.1792,2794.9,2794.6,10.951]
[1749627227344,0.1792,2794.7,2794.6,0.951]
[1749627229381,0.1792,2794.7,2794.6,4.52932963]
[1749627229580,4.7,2795.1,2794.6,4.52932963]
[1749627229581,4.7,2795.1,2794.6,0.951]
[1749627229782,4.7,2795.1,2794.7,10.0]
[1749627229783,0.1792,2794.9,2794.7,10.0]
[1749627229961,0.1792,2794.9,2794.7,13.57814448]
[1749627231549,0.1792,2794.9,2794.6,10.951]
[1749627231969,0.1792,2794.7,2794.6,10.0]
[1749627232178,1.1905,2794.7,2794.6,0.951]
[1749627235880,0.1792,2794.7,2794.6,14.52932963]
[1749627236084,0.1792,2794.7,2794.6,15.94016418]
[1749627236288,0.1792,2794.7,2794.6,12.36183455]
[1749627236709,0.1792,2794.7,2794.6,12.6930243]
[1749627237021,1.1331,2794.7,2794.6,11.28218975]
[1749627237180,0.1792,2794.7,2794.6,10.951]
[1749627237708,0.1792,2794.7,2794.6,12.36183455]
[1749627238593,0.1792,2794.7,2794.6,12.6929903]
[1749627238808,0.1792,2794.7,2794.6,12.36183455]
[1749627240772,0.1792,2794.7,2794.6,14.52932963]
[1749627241009,0.1792,2794.7,2794.6,14.86051194]
[1749627241214,0.1792,2794.7,2794.6,10.951]
[1749627241420,0.1792,2794.7,2794.6,14.52932963]
[1749627242022,0.1792,2794.7,2794.6,14.86048334]
[1749627242323,0.1792,2794.7,2794.6,14.52932963]
[1749627242826,0.1792,2794.7,2794.6,11.28216329]
[1749627242988,0.1792,2794.7,2794.6,14.52932963]
[1749627243189,1.167,2794.7,2794.6,10.951]
[1749627243441,1.167,2794.7,2794.6,12.36309936]
[1749627243607,1.167,2794.7,2794.6,10.951]
[1749627243790,1.167,2794.7,2794.6,12.69437461]
[1749627243986,1.167,2794.7,2794.6,12.6944007]
[1749627244329,1.167,2794.7,2794.6,12.69440294]
[1749627244551,1.167,2794.7,2794.6,12.36315544]
[1749627246834,0.1792,2794.7,2794.6,14.52932963]
[1749627247034,0.1792,2794.7,2794.6,14.86037914]
[1749627247222,0.1792,2794.7,2794.6,14.52932963]
[1749627247891,0.1792,2794.7,2794.6,4.8604003]
[1749627248096,0.1792,2794.7,2794.6,4.52932963]
[1749627248511,0.1792,2794.7,2794.6,4.86039851]
[1749627248708,0.1792,2794.7,2794.6,4.52932963]
[1749627249444,0.1792,2794.7,2794.6,0.951]
[1749627249961,0.1792,2794.7,2794.6,2.36276357]
[1749627250096,0.1792,2794.7,2794.6,1.28215474]
[1749627250297,0.1792,2794.7,2794.6,0.951]
[1749627250696,0.1792,2794.7,2794.6,1.28214177]
[1749627250925,0.1792,2794.7,2794.6,2.36222253]
[1749627251834,0.1792,2794.7,2794.6,4.52932963]
[1749627252341,0.1792,2794.7,2794.6,6.64192602]
[1749627253135,0.1792,2794.7,2794.6,6.9728769]
[1749627253344,0.1792,2794.7,2794.6,6.64192602]
[1749627253753,0.1792,2794.7,2794.6,6.97971248]
[1749627253947,0.1792,2794.7,2794.6,6.64874825]
[1749627254321,0.1792,2794.7,2794.6,6.97973888]
[1749627254514,0.1792,2794.7,2794.6,6.64874825]
[1749627254827,0.1792,2794.7,2794.6,3.07041862]
[1749627256304,0.1792,2794.7,2794.6,3.40160197]
[1749627256552,0.1792,2794.7,2794.6,3.07041862]
[1749627256961,0.1792,2794.7,2794.6,2.45063226]
[1749627257098,0.66712,2794.7,2794.6,1.62032405]
[1749627257303,0.66712,2794.7,2794.6,0.95782223]
[1749627257574,7.86141264,2794.7,2794.6,2.3709253]
[1749627257857,7.86141264,2794.7,2794.6,0.95782223]
[1749627258076,1.0056,2794.5,2794.3,1.41310307]
[1749627258199,7.74429264,2794.5,2794.4,0.951]
[1749627258404,7.92349264,2794.5,2794.4,1.28260834]
[1749627258604,7.92349264,2794.5,2794.4,0.951]
[1749627258825,2.47461205,2794.5,2794.4,0.951]
[1749627259724,8.66330469,2794.5,2794.4,1.28259434]
[1749627259924,8.66330469,2794.5,2794.4,1.61426581]
[1749627260103,9.21330469,2794.5,2794.4,1.28259434]
[1749627260304,9.21330469,2794.5,2794.4,1.61430807]
[1749627260504,9.21330469,2794.5,2794.4,1.28259434]
[1749627260939,12.88130469,2794.5,2794.4,1.28259434]
[1749627261143,12.88130469,2794.5,2794.4,1.61430304]
[1749627261354,12.88130469,2794.5,2794.4,1.28259434]
[1749627261539,12.88130469,2794.5,2794.4,1.61430048]
[1749627261847,12.88130469,2794.5,2794.4,1.28259434]
[1749627263242,17.58130469,2794.5,2794.4,1.28259434]
[1749627264142,17.58130469,2794.5,2794.4,1.61424647]
[1749627264443,17.58130469,2794.5,2794.4,1.28259434]
[1749627265045,17.58130469,2794.5,2794.4,1.61426663]
[1749627265257,7.17461205,2794.5,2794.4,1.28259434]
[1749627265426,10.83961205,2794.5,2794.4,1.28259434]
[1749627265749,9.5498,2794.5,2794.4,1.28259434]
[1749627266453,10.0998,2794.5,2794.4,1.6144308]
[1749627266615,10.0998,2794.5,2794.4,1.28259434]
[1749627266948,10.0998,2794.5,2794.4,1.61447406]
[1749627267157,10.0998,2794.5,2794.4,1.61448181]
[1749627267337,11.72864926,2794.5,2794.4,1.61448181]
[1749627267727,11.72864926,2794.5,2794.4,1.28259434]
[1749627268250,17.9173419,2794.5,2794.4,0.951]
[1749627271048,0.55,2794.4,2793.5,13.57969145]
[1749627271253,0.55,2794.4,2793.6,0.951]
[1749627271254,8.363,2794.3,2793.6,0.951]
[1749627271653,0.1792,2793.7,2793.6,0.951]
[1749627271840,4.8792,2793.7,2793.6,0.951]
[1749627272163,4.8792,2793.7,2793.1,9.94805736]
[1749627272164,1.0477,2793.6,2793.1,1.41310307]
[1749627272350,9.85569264,2793.5,2793.2,0.951]
[1749627272674,4.7,2793.4,2793.3,0.951]
[1749627272984,5.6607,2793.4,2793.3,0.951]
[1749627273134,5.8399,2793.4,2793.3,0.951]
[1749627274570,5.8399,2793.4,2792.4,10.0]
[1749627274774,3.666,2793.3,2792.5,0.957]
[1749627275068,0.1792,2792.7,2792.5,0.957]
[1749627275268,0.1792,2792.7,2792.6,12.84689107]
[1749627275471,0.1792,2792.7,2792.6,9.266]
[1749627275858,4.8792,2792.7,2792.6,10.223]
[1749627277645,4.8792,2792.7,2792.6,19.99258499]
[1749627277835,4.7,2792.7,2792.6,20.42970948]
[1749627278036,4.7,2792.7,2792.6,19.99258499]
[1749627278976,4.7,2792.7,2792.6,13.80389235]
[1749627280983,0.1792,2792.9,2792.6,13.80389235]
[1749627281283,0.1792,2792.9,2792.8,3.58063592]
[1749627282079,0.1792,2793.0,2792.8,3.58054817]
[1749627282283,0.1792,2793.0,2792.9,3.91301292]
[1749627282642,0.1792,2793.0,2792.8,13.58059153]
[1749627282847,0.1792,2793.0,2792.9,0.33251975]
[1749627283080,5.18792,2793.0,2792.9,0.957]
[1749627283281,1.6116,2792.9,2792.2,0.957]
[1749627283484,0.1792,2792.7,2792.2,0.957]
[1749627283651,5.7616,2792.8,2792.2,4.53833926]
[1749627283852,5.7616,2792.8,2792.3,3.58126315]
[1749627283853,4.7,2792.8,2792.3,3.58126315]
[1749627284053,0.1792,2792.4,2792.2,4.53834972]
[1749627285266,0.1792,2792.4,2792.3,0.33270191]
[1749627285452,0.1792,2792.4,2792.2,4.53834972]
[1749627285971,0.1792,2792.4,2792.3,3.91406118]
[1749627286365,0.1792,2792.4,2792.3,3.58127708]
[1749627286557,0.1792,2792.5,2792.2,4.53837698]
[1749627286771,0.1792,2792.5,2792.4,3.58110985]
[1749627286959,0.1792,2792.5,2792.4,10.0]
[1749627287164,0.1792,2792.5,2792.4,13.58114883]
[1749627287385,4.7,2792.8,2792.5,3.58098951]
[1749627287684,0.9672,2793.2,2792.6,10.33016321]
[1749627287685,0.1792,2792.7,2792.6,10.33016321]
[1749627288086,0.1792,2792.7,2792.6,10.33012121]
[1749627288385,0.1792,2792.7,2792.6,10.0]
[1749627288583,0.1792,2792.7,2792.6,10.33012169]
[1749627288788,0.1792,2792.7,2792.6,10.0]
[1749627289179,0.1792,2792.7,2792.6,10.33012337]
[1749627289581,0.1792,2792.7,2792.6,10.0]
[1749627290190,0.1792,2792.7,2792.4,1.41092296]
[1749627290391,0.1792,2792.7,2792.6,0.957]
[1749627290752,0.1792,2792.7,2792.6,1.28717359]
[1749627290957,0.1792,2792.7,2792.6,0.957]
[1749627291159,0.1792,2792.7,2792.6,1.28713196]
[1749627291497,0.1792,2792.7,2792.6,0.957]
[1749627291660,0.1792,2792.7,2792.6,1.2872376]
[1749627291991,0.1792,2792.7,2792.6,0.957]
[1749627292558,0.1792,2792.7,2792.6,1.28725925]
[1749627292762,4.8792,2792.7,2792.6,1.2872824]
[1749627292970,4.8792,2792.7,2792.6,0.957]
[1749627293491,5.36712,2792.7,2792.1,14.9923894]
[1749627293801,0.1792,2792.3,2792.2,0.957]
[1749627294262,0.1792,2792.3,2792.2,15.9493283]
[1749627294463,4.7,2792.7,2792.5,10.0]
[1749627294761,4.7,2792.7,2792.6,10.0]
[1749627295165,4.8792,2792.7,2792.6,10.0]
[1749627295369,4.8792,2792.7,2792.6,10.33021511]
[1749627295573,4.8792,2792.7,2792.6,10.0]
[1749627295865,4.8792,2792.7,2792.6,10.33021396]
[1749627296681,4.8792,2792.7,2792.6,10.0]
[1749627297217,4.8792,2792.7,2792.6,10.33039744]
[1749627297507,4.8792,2792.7,2792.6,10.0]
[1749627297905,4.8792,2792.7,2792.6,10.3305958]
[1749627298113,4.8792,2792.7,2792.6,13.91148822]
[1749627298265,4.8792,2792.7,2792.6,13.58089235]
[1749627298467,4.8792,2792.7,2792.6,10.0]
[1749627298805,0.1792,2792.7,2792.6,10.0]
[1749627300876,0.1792,2792.7,2792.6,10.33219461]
[1749627301095,0.1792,2792.7,2792.6,10.0]
[1749627301495,0.1792,2792.7,2792.6,11.74312618]
[1749627301679,0.1792,2792.7,2792.6,11.41092296]
[1749627302073,0.1792,2792.7,2792.6,11.74314907]
[1749627302273,0.1792,2792.7,2792.6,11.41092296]
[1749627302884,0.1792,2792.7,2792.6,11.74314902]
[1749627303103,0.1792,2792.7,2792.6,11.41092296]
[1749627303718,1.1688,2792.7,2792.6,1.29326727]
[1749627304020,1.1688,2792.7,2792.6,1.29332415]
[1749627304303,1.1688,2792.7,2792.6,0.961]
[1749627304676,5.8688,2792.7,2792.6,0.961]
[1749627304872,6.45568,2792.7,2792.6,0.961]
[1749627305272,6.45568,2792.7,2792.6,1.29333754]
[1749627305480,6.45568,2792.7,2792.6,0.961]
[1749627306511,4.8792,2792.7,2792.6,1.29332204]
[1749627306707,4.8792,2792.7,2792.6,0.961]
[1749627306906,4.8792,2792.7,2792.6,1.29331046]
[1749627307109,4.8792,2792.7,2792.6,1.29339334]
[1749627307276,4.8792,2792.7,2792.6,1.29341089]
[1749627307477,5.46385,2792.7,2792.6,0.961]
[1749627307822,6.48005,2792.7,2792.6,0.961]
[1749627307974,6.48005,2792.7,2792.6,1.29349435]
[1749627308173,6.48005,2792.7,2792.6,0.961]
[1749627308376,6.48005,2792.7,2792.6,1.29352416]
[1749627308574,6.48005,2792.7,2792.6,0.961]
[1749627308771,6.48005,2792.7,2792.6,1.29353834]
[1749627309006,6.48005,2792.7,2792.6,0.961]
[1749627309210,6.48005,2792.7,2792.6,1.29363599]
[1749627309511,1.0067,2792.6,2792.2,9.269]
[1749627309714,0.1792,2792.4,2792.3,0.961]
[1749627310088,1.1859,2792.4,2792.3,1.29376765]
[1749627310293,1.3692905,2792.4,2792.3,0.961]
[1749627311417,1.1859,2792.4,2792.3,0.961]
[1749627312082,1.1859,2792.4,2792.3,1.29373522]
[1749627312382,0.1792,2792.4,2792.3,1.29373545]
[1749627312583,0.1792,2792.4,2792.3,1.2937273]
[1749627312889,0.1792,2792.4,2792.3,4.54227708]
[1749627313088,0.1792,2792.4,2792.3,5.95997924]
[1749627313475,0.1792,2792.4,2792.3,14.54227708]
[1749627313683,0.1792,2792.4,2792.3,16.65487347]
[1749627314901,0.1792,2792.4,2792.3,16.98747648]
[1749627315095,0.1792,2792.4,2792.3,16.65487347]
[1749627316004,4.7,2792.7,2792.3,16.65487347]
[1749627316005,4.7,2792.7,2792.6,13.58089235]
[1749627316326,4.7,2792.7,2792.6,15.70655925]
[1749627316512,4.7,2792.7,2792.6,15.71169736]
[1749627316884,4.7,2792.7,2792.6,13.58603046]
[1749627317629,4.7,2792.7,2792.6,15.70939137]
[1749627317830,4.7,2792.7,2792.6,23.23248084]
[1749627318027,4.7,2793.4,2792.9,13.58050771]
[1749627318232,4.7,2793.4,2793.0,11.41503692]
[1749627318233,0.1792,2793.1,2793.0,11.41503692]
[1749627318415,0.1792,2793.1,2793.0,15.96155381]
[1749627318618,0.1792,2793.1,2793.0,12.38117429]
[1749627319930,0.1792,2793.1,2793.0,15.96155381]
[1749627320296,0.1792,2793.1,2793.0,12.38117429]
[1749627320694,0.1792,2793.1,2793.0,10.96613737]
[1749627320920,0.1792,2793.1,2793.0,0.96613737]
[1749627321227,1.224,2793.1,2793.0,0.00513737]
[1749627321464,1.224,2793.1,2793.0,1.29779646]
[1749627321592,1.224,2793.1,2793.0,0.96613737]
[1749627322233,1.224,2793.1,2793.0,0.961]
[1749627322525,1.224,2793.1,2793.0,0.96383017]
[1749627322526,5.924,2793.1,2793.0,0.96383017]
[1749627322748,6.5164,2793.1,2793.0,0.96383017]
[1749627323139,17.0664,2793.1,2793.0,0.96383017]
[1749627324045,17.0664,2793.1,2793.0,0.00283017]
[1749627324224,17.0664,2793.1,2793.0,0.96383017]
[1749627324817,7.0664,2793.1,2793.0,0.96383017]
[1749627325018,7.0664,2793.1,2793.0,0.00283017]
[1749627325219,7.0664,2793.1,2793.0,0.96383017]
[1749627326412,0.9878,2792.8,2792.2,10.68403692]
[1749627326752,5.26566681,2792.7,2792.3,0.961]
[1749627326950,0.1792,2792.4,2792.3,0.961]
[1749627329718,0.1792,2792.4,2792.3,4.54227708]
[1749627329951,0.1792,2792.4,2792.3,14.54227708]
[1749627330155,0.1792,2792.5,2792.4,13.58112973]
[1749627330319,0.1792,2792.5,2792.4,10.0]
[1749627330649,0.1792,2792.5,2792.4,11.41503692]
[1749627331421,0.1792,2792.5,2792.4,1.41503692]
[1749627332353,4.69716983,2792.7,2792.3,3.08355538]
[1749627332653,4.69716983,2792.7,2792.6,4.99478518]
[1749627333156,4.87636983,2792.7,2792.6,4.99478518]
[1749627333357,4.69716983,2792.7,2792.6,4.99478518]
[1749627333759,4.69716983,2792.7,2792.6,1.41389283]
[1749627333958,4.69716983,2792.7,2792.5,1.41389283]
[1749627334659,4.69716983,2792.7,2792.6,0.961]
[1749627334832,5.16688681,2792.7,2792.6,0.961]
[1749627335158,5.34608681,2792.7,2792.6,0.961]
[1749627335318,4.87636983,2792.7,2792.6,0.961]
[1749627335957,4.87636983,2792.7,2792.6,1.29361614]
[1749627336161,4.87636983,2792.7,2792.6,4.87450849]
[1749627336325,4.87636983,2792.7,2792.6,4.54189235]
[1749627336523,4.87636983,2792.7,2792.6,5.95578518]
[1749627337028,4.87636983,2792.7,2792.6,6.28702736]
[1749627337227,4.87636983,2792.7,2792.6,2.37489283]
[1749627337556,4.69716983,2793.3,2792.8,3.58056142]
[1749627337731,0.1792,2792.9,2792.8,4.99468072]
[1749627337930,4.69716983,2793.3,2792.8,1.4141193]
[1749627338239,0.57074698,2793.2,2792.9,0.961]
[1749627338754,0.1792,2793.0,2792.8,1.4139469]
[1749627339105,0.9622,2792.9,2792.3,1.4139469]
[1749627339233,6.24322681,2792.9,2792.4,0.961]
[1749627339439,0.9565,2792.8,2792.5,0.33141408]
[1749627339623,0.9565,2792.8,2792.4,0.961]
[1749627339823,0.1792,2792.5,2792.4,0.961]
[1749627340053,0.1792,2792.5,2792.4,0.3314427]
[1749627340222,0.1792,2792.5,2792.4,0.961]
[1749627341975,1.034,2792.4,2792.2,9.269]
[1749627342142,5.28820681,2792.3,2792.2,9.269]
[1749627342330,4.87636983,2792.3,2792.2,9.269]
[1749627342532,4.87636983,2792.3,2792.2,10.23]
[1749627346566,4.87636983,2792.3,2792.2,9.269]
[1749627346766,5.84716983,2792.3,2792.2,10.23]
[1749627346971,7.37861185,2792.3,2792.2,10.23]
[1749627347131,7.37861185,2792.3,2792.2,10.56189595]
[1749627347333,7.37861185,2792.3,2792.2,10.23]
[1749627348385,7.92861185,2792.3,2792.2,10.56193819]
[1749627348588,7.92861185,2792.3,2792.2,10.23]
[1749627349153,11.60761185,2792.3,2792.2,10.23]
[1749627350187,11.60761185,2792.3,2792.2,9.269]
[1749627350392,11.60761185,2792.3,2792.2,10.23]
[1749627350588,11.60761185,2792.3,2792.2,10.56322034]
[1749627350765,11.60761185,2792.3,2792.2,10.23]
[1749627351991,4.69716983,2792.0,2791.3,1.4139469]
[1749627352194,4.6307,2791.9,2791.4,0.961]
[1749627352560,0.1792,2791.5,2791.4,0.961]
[1749627352786,0.1792,2791.5,2791.4,1.29442723]
[1749627352993,0.1792,2791.5,2791.4,0.961]
[1749627353393,0.1792,2791.5,2791.4,4.54343175]
[1749627353565,4.69716983,2792.0,2791.5,3.58222204]
[1749627353770,0.1792,2791.7,2791.5,3.58222204]
[1749627353980,0.1792,2791.7,2791.6,3.58217509]
[1749627354382,0.1792,2791.7,2791.6,0.961]
[1749627354780,0.1792,2791.7,2791.6,1.29449623]
[1749627354983,0.1792,2791.7,2791.6,0.961]
[1749627355697,0.1792,2791.7,2791.6,0.33348348]
[1749627355996,0.1792,2791.7,2791.6,0.961]
[1749627356758,0.1792,2791.7,2791.6,1.29460934]
[1749627356958,0.1792,2791.7,2791.6,0.961]
[1749627357397,0.1792,2791.7,2791.6,7.16252384]
[1749627357775,0.1792,2791.7,2791.6,11.07827853]
[1749627358374,0.1792,2791.8,2791.7,3.58195825]
[1749627358575,4.69716983,2792.0,2791.9,3.58179017]
[1749627358795,4.87636983,2792.0,2791.9,9.78331401]
[1749627359099,4.87636983,2792.0,2791.9,0.33106859]
[1749627359261,4.87636983,2792.0,2791.8,3.58188694]
[1749627359657,4.87636983,2792.0,2791.9,0.33106849]
[1749627359863,4.87636983,2792.0,2791.8,3.58188694]
[1749627360406,4.87636983,2792.0,2791.7,7.2580058]
[1749627361012,4.87636983,2792.0,2791.8,3.5818938]
[1749627361371,4.87636983,2792.0,2791.9,0.33115912]
[1749627361572,4.87636983,2792.0,2791.8,3.5818938]
[1749627361771,4.87636983,2792.0,2791.9,3.58179017]
[1749627362110,4.69716983,2792.0,2791.9,3.58179017]
[1749627362410,4.69716983,2792.0,2791.9,4.87393047]
[1749627362606,4.69716983,2792.0,2791.9,0.3311403]
[1749627362808,4.69716983,2792.0,2791.9,1.2921403]
[1749627363026,4.69716983,2792.0,2791.9,1.29206135]
[1749627363185,4.69716983,2792.0,2791.9,0.961]
[1749627363381,4.69716983,2792.0,2791.9,1.29200319]
[1749627363609,4.69716983,2792.0,2791.9,1.29195165]
[1749627363802,4.69716983,2792.0,2791.9,0.961]
[1749627364286,4.69716983,2792.0,2791.9,1.29192731]
[1749627364480,4.69716983,2792.0,2791.9,1.29203993]
[1749627364686,4.69716983,2792.0,2791.9,0.961]
[1749627365107,4.69716983,2792.0,2791.9,10.233]
[1749627365508,4.69716983,2792.0,2791.9,10.56479497]
[1749627365789,4.69716983,2792.0,2791.9,13.81479017]
[1749627366186,4.69716983,2792.7,2791.9,20.7446827]
[1749627366402,4.69716983,2792.7,2792.3,3.581254]
[1749627366403,0.1792,2792.4,2792.3,3.581254]
[1749627366603,0.1792,2792.5,2792.3,3.581254]
[1749627366922,0.1792,2792.5,2792.2,3.58134016]
[1749627367833,0.1792,2792.5,2792.1,0.1792]
[1749627368012,0.1792,2792.3,2792.2,1.29139574]
[1749627368327,0.48763698,2792.5,2792.2,1.29139574]
[1749627368328,0.9334,2792.4,2792.2,1.29139574]
[1749627368621,4.87636983,2792.3,2792.2,0.959]
[1749627369732,4.87636983,2792.3,2792.2,1.29137464]
[1749627370034,4.87636983,2792.3,2792.2,1.29145861]
[1749627370198,4.87636983,2792.3,2792.2,1.29151002]
[1749627370199,5.45734681,2792.3,2792.2,1.29151002]
[1749627370549,5.45734681,2792.3,2792.2,0.959]
[1749627370823,5.45734681,2792.3,2792.2,1.29150224]
[1749627371023,5.45734681,2792.3,2792.2,0.959]
[1749627371401,5.45734681,2792.3,2792.2,1.29149247]
[1749627372027,5.45734681,2792.3,2792.2,1.29171353]
[1749627372322,5.45734681,2792.3,2792.2,1.29171164]
[1749627372622,5.45734681,2792.3,2792.2,1.29170519]
[1749627372827,5.45734681,2792.3,2792.2,1.29170319]
[1749627373733,5.45734681,2792.3,2792.2,1.29183582]
[1749627373893,5.45734681,2792.3,2792.2,0.959]
[1749627374331,5.45734681,2792.3,2791.9,9.272]
[1749627374528,4.69716983,2792.3,2792.2,0.959]
[1749627374838,5.70046983,2792.3,2792.2,1.29182731]
[1749627375000,5.87966983,2792.3,2792.2,1.29182731]
[1749627375338,5.87966983,2792.3,2792.2,1.29182831]
[1749627375539,6.46763681,2792.3,2792.2,0.33282981]
[1749627375737,6.46763681,2792.3,2792.2,0.959]
[1749627376034,5.46433681,2792.3,2792.2,1.29181777]
[1749627376256,4.87636983,2792.3,2792.2,1.29178194]
[1749627376471,4.87636983,2792.3,2792.2,0.959]
[1749627376954,4.87636983,2792.3,2792.2,1.29171531]
[1749627377138,4.87636983,2792.3,2792.2,1.29179487]
[1749627377299,4.87636983,2792.3,2792.2,0.959]
[1749627377499,4.87636983,2792.3,2792.2,1.29181884]
[1749627377699,4.87636983,2792.3,2792.2,0.959]
[1749627378146,4.87636983,2792.3,2792.2,1.29181588]
[1749627378641,4.87636983,2792.3,2792.2,0.959]
[1749627378836,4.87636983,2792.3,2792.2,1.29187762]
[1749627379036,4.87636983,2792.3,2792.2,1.29186776]
[1749627379233,5.45989681,2792.3,2792.2,1.29187356]
[1749627379545,5.45989681,2792.3,2792.2,0.959]
[1749627380163,5.45989681,2792.3,2792.2,4.8732404]
[1749627380164,4.87636983,2792.3,2792.2,4.8732404]